[Event "FRA-ch Teams Top 16-B 2022"]
[Site "Chartres"]
[Date "2022.06.11"]
[Round "3.16"]
[White "Steil-Antoni, Fiona"]
[Black "Monpeurt, Cyrielle"]
[Result "1/2-1/2"]
[ECO "B45"]
[WhiteElo "2198"]
[BlackElo "2172"]
[Annotator "TA"]
[PlyCount "77"]
[EventDate "2022.06.09"]
[EventType "team-tourn"]
[EventCountry "FRA"]
[SourceTitle "playchess.com"]
[Source "ChessBase"]
[SourceQuality "1"]
[TimeControl "40/5400+30:1800+30"]

{[%evp 16,77,19,0,32,25,111,27,84,41,61,61,54,-4,7,0,56,-41,-37,-63,-7,0,0,-40,-44,-153,-4,-66,-57,-86,54,67,52,56,48,50,38,-26,115,117,116,112,112,37,43,44,43,16,10,9,98,0,14,0,0,0,32,0,0,0,76,0,0,0]} 1. e4 {[%emt 0:05:12]} c5 {[%emt 0:00:12]} 2. Nf3 {[%emt 0:00:10]} Nc6 {[%emt 0:00:24]} 3. d4 {[%emt 0:00:19]} cxd4 {[%emt 0:00:15]} 4. Nxd4 {[%emt 0:00:08]} Nf6 {[%emt 0:00:09]} 5. Nc3 {[%emt 0:00:08]} e6 {[%emt 0:00:10]} 6. Nxc6 {[%emt 0:00:37]} bxc6 {[%emt 0:00:05]} 7. e5 {[%emt 0:00:20]} Nd5 {[%emt 0:00:12]} 8. Ne4 {[%emt 0:00:28]} Qa5+ {[%emt 0:00:14]} 9. Bd2 {[%emt 0:00:55]} Qc7 {[%emt 0:00:15] B45: Sicilian Four Knights.} (9... Qb6 $5 {[%cal Rb6d4]}) 10. Qh5 {[%emt 0:00:51] [#] Black must now prevent c4.} Bb7 $146 {[%emt 0:05:49]} (10... h6 $11) ({Predecessor:} 10... g6 11. Qg5 Be7 12. Qg3 f5 13. Nd6+ Bxd6 14. exd6 Qd8 15. c4 Nf6 16. Qe5 Kf7 17. Bc3 {1-0 (33) Konguvel,P (2404)-Garcia Paolicchi,R (2228) Andorra 2006}) 11. Bd3 {[%emt 0:12:52] White is much more active. The black rooks are badly placed.} ({Better is} 11. O-O-O $16) 11... O-O-O {[%emt 0:13:33]} (11... c5 $11 {remains equal.}) 12. a3 {[%emt 1:14:30]} f5 {[%emt 0:11:27]} 13. exf6 $1 {[%emt 0:00:00]} gxf6 {[%emt 0:00:05]} 14. g3 {[%emt 0:00:00]} (14. c4 $1 $14 Nf4 15. Bxf4 Qxf4 16. g3) 14... c5 $132 {[%emt 0:09:52][%mdl 2048] Black is fighting back} 15. Qe2 {[%emt 0:00:00]} Be7 {[%emt 0:05:39]} (15... Bg7 $11) 16. O-O-O {[%emt 0:00:00]} (16. b4 $14) 16... Nb6 $1 $15 {[%emt 0:04:10]} ({Don't take} 16... f5 17. Nc3 $11) 17. Ba6 {[%emt 0:00:00]} Kb8 {[%emt 0:02:41]} (17... d5 $1 $15 18. Nc3 e5) 18. Bxb7 $11 {[%emt 0:00:00]} (18. Bc3 {is interesting.} d5 19. Bxb7 Qxb7 20. Bxf6 dxe4 21. Bxh8 Rxh8 22. Qg4) 18... Qxb7 {[%emt 0:02:49]} 19. Ba5 {[%emt 0:00:00]} d5 {[%emt 0:01:29]} 20. Nd2 {[%emt 0:00:00] [#]} (20. Bxb6 $15 Qxb6 21. Nc3) 20... e5 {[%emt 0:01:24]} (20... Na4 $1 $17 {[%csl Ga4][%cal Rb7b2]} 21. Nf3 (21. b3 c4 $15) 21... Nxb2 22. Bxd8 Nc4) 21. Qb5 {[%emt 0:00:00]} (21. Bxb6 $11 Qxb6 22. c4) 21... Rd6 $15 {[%emt 0:02:06]} 22. c4 {[%emt 0:05:00] [#]} dxc4 {[%emt 0:06:48]} (22... d4 $1 $17) 23. Nxc4 $14 {[%emt 0:00:00]} Nxc4 {[%emt 0:00:06]} 24. Qxc4 {[%emt 0:00:00] Strongly threatening Rxd6.} Rd4 {[%emt 0:00:10]} 25. Qc2 {[%emt 0:00:00]} c4 {[%emt 0:03:56][%cal Od4d3]} 26. Bc3 {[%emt 0:00:00]} ({White should try} 26. Rhe1 $14) 26... Bc5 {[%emt 0:03:05]} (26... Rd3 $1 $11) 27. Bxd4 $16 {[%emt 0:00:00]} Bxd4 {[%emt 0:00:04]} 28. Rhe1 {[%emt 0:00:00]} Rc8 {[%emt 0:00:32]} 29. Re2 {[%emt 0:00:00]} (29. Kb1 $16) 29... c3 $14 {[%emt 0:03:18]} 30. b4 {[%emt 0:00:00]} Qa6 {[%emt 0:04:13]} 31. Qa2 {[%emt 0:00:00]} Qa4 {[%emt 0:00:28]} 32. Rc2 {[%emt 0:00:00]} a6 {[%emt 0:03:10]} (32... a5 $11 {keeps the balance.}) 33. Rd3 {[%emt 0:00:24]} (33. Kb1 $16) 33... Rc7 {[%emt 0:03:18]} (33... Qb5 $5 34. Rd1 h5 $16) 34. f3 {[%emt 0:02:51]} Qb5 {[%emt 0:00:51]} 35. Rd1 {[%emt 0:00:14]} Qa4 {[%emt 0:04:40]} 36. Rd3 {[%emt 0:00:40]} Qb5 {[%emt 0:02:03]} 37. Rd1 {[%emt 0:00:01]} Rc4 {[%emt 0:09:18]} (37... Qa4 $11) 38. Kb1 {[%emt 0:03:50]} ({White should play} 38. f4 $16) 38... a5 $11 {[%emt 0:00:30]} 39. Ka1 {[%emt 0:00:30] Weighted Error Value: White=0.38/Black=0.44} 1/2-1/2

[Event "FRA-ch Teams Top 16-B 2022"]
[Site "Chartres"]
[Date "2022.06.11"]
[Round "3.17"]
[White "Erigaisi Arjun"]
[Black "Vocaturo, Daniele"]
[Result "1-0"]
[ECO "D00"]
[WhiteElo "2675"]
[BlackElo "2608"]
[Annotator "TA"]
[PlyCount "75"]
[EventDate "2022.06.09"]
[EventType "team-tourn"]
[EventCountry "FRA"]
[SourceTitle "playchess.com"]
[Source "ChessBase"]
[SourceQuality "1"]
[TimeControl "40/5400+30:1800+30"]

{[%evp 9,75,-10,-4,-17,-12,-21,-8,-11,6,6,6,14,43,41,31,22,29,0,0,-20,-12,-16,0,0,0,0,0,0,0,0,0,-160,-151,-172,-150,-159,-83,-85,-22,-20,0,-12,0,-47,-13,-19,132,120,107,133,342,0,429,358,381,380,345,296,1153,1152,1140,1125,29973,29972,29985,29986,29985,29985]} 1. d4 {[%emt 0:00:09]} Nf6 {[%emt 0:00:35]} 2. Nc3 {[%emt 0:00:15]} d5 {[%emt 0:01:36]} 3. Bf4 {[%emt 0:00:07]} a6 {[%emt 0:02:06]} 4. e3 {[%emt 0:00:14]} b5 {[%emt 0:01:33]} 5. Nf3 {[%emt 0:00:25]} e6 {[%emt 0:02:04]} 6. Bd3 {[%emt 0:01:20] D00: 1 d4 d5: Unusual lines.} Bb7 {[%emt 0:07:09]} 7. Ne2 {[%emt 0:00:46]} c5 {[%emt 0:01:41]} 8. c3 {[%emt 0:00:08] The position is equal.} Nc6 {[%emt 0:01:58]} 9. Ng3 {[%emt 0:04:20]} Bd6 {[%emt 0:04:54] [#]} 10. Bg5 $146 {[%emt 0:02:44]} ({Predecessor:} 10. O-O O-O 11. dxc5 Bxc5 12. e4 Re8 13. e5 Nd7 14. Re1 f5 15. Bxf5 Qb6 16. Bxh7+ Kxh7 {1-0 (24) Madaminov,M (2328)-Demchenko,A (2654) Chess.com INT 2022}) 10... h6 {[%emt 0:06:39]} 11. Bxf6 {[%emt 0:00:26]} gxf6 {[%emt 0:00:06]} 12. dxc5 {[%emt 0:13:04]} Bxc5 {[%emt 0:00:07]} 13. b4 {[%emt 0:00:13]} Bd6 {[%emt 0:04:52]} 14. a4 {[%emt 0:01:59]} bxa4 {[%emt 0:00:50]} 15. Qxa4 {[%emt 0:09:23]} Kf8 {[%emt 0:06:17]} 16. O-O {[%emt 0:01:53]} h5 {[%emt 0:00:42][%cal Bh6h5,Bh5h4][%mdl 32]} 17. Rfc1 {[%emt 0:07:55]} h4 {[%emt 0:05:41]} 18. Nf1 {[%emt 0:00:08]} f5 {[%emt 0:07:20]} 19. Qd1 {[%emt 0:09:43]} Rg8 {[%emt 0:02:27]} 20. Qe2 $2 {[%emt 0:14:58]} (20. N1d2 $11) 20... Ne5 $1 $17 {[%emt 0:04:15]} 21. Nxe5 {[%emt 0:01:24]} Bxe5 {[%emt 0:00:09]} 22. f3 {[%emt 0:02:36][%cal Rd3a6]} Qb6 {[%emt 0:02:02]} (22... Qf6 $142 23. Ra3 f4 24. exf4 Qxf4) 23. h3 {[%emt 0:03:10]} f4 {[%emt 0:04:18]} (23... Kg7 $17) 24. Kh1 $11 {[%emt 0:02:31]} fxe3 {[%emt 0:02:29]} 25. Nxe3 {[%emt 0:00:08]} Bf4 {[%emt 0:01:57] This bishop pair is nice.} 26. Re1 {[%emt 0:00:22]} (26. Ng4 $11) 26... d4 {[%emt 0:05:43]} 27. Ng4 {[%emt 0:02:16]} Bc7 $2 {[%emt 0:08:03] [#]} (27... dxc3 $11 28. Nf6 Rd8 $1 29. Nxg8 Kxg8) 28. Qd2 $1 $16 {[%emt 0:01:50] Black must now prevent Qh6+. White is more active.} Qd6 {[%emt 0:04:24][%cal Og8g4] Threatens to win with ...Rxg4!} 29. Qh6+ {[%emt 0:00:23]} Rg7 $2 {[%emt 0:01:57]} (29... Ke8 $16 {was worth a try.} 30. Qxh4 dxc3) 30. cxd4 $2 {[%emt 0:05:12]} (30. Qxh4 Qg3 31. Qh8+ Rg8 32. Qh6+ Rg7 $11) ({Not} 30. Qh8+ Rg8 31. Qh6+ (31. Qxd4 $2 Qg3 $19) 31... Ke8 32. Qxh4 Qg3 33. Qxg3 Bxg3 $16) ({Better is} 30. Re5 $18 Bd8 31. cxd4) 30... Qxd4 $2 {[%emt 0:06:24][%mdl 8192]} (30... Qg3 $11 31. Qh8+ Rg8 32. Qh6+ Rg7 33. Qh8+ Rg8 34. Qh6+ Rg7) 31. Qh8+ {[%emt 0:00:41]} Ke7 {[%emt 0:00:05]} 32. Qxh4+ {[%emt 0:00:05]} Kf8 {[%emt 0:00:13]} 33. Rad1 {[%emt 0:02:29] Dancing on a razor blade.} Qxb4 {[%emt 0:02:11]} (33... Qf4 34. Be4 Bxe4) 34. Be4 $18 {[%emt 0:01:14]} Bxe4 {[%emt 0:00:57]} 35. Rxe4 {[%emt 0:00:08][%cal Be1e4,Be4d4,Bd4d7][%mdl 32]} Qb3 {[%emt 0:01:02]} 36. Red4 {[%emt 0:00:33] White mates.} Qb5 {[%emt 0:01:58]} 37. Nf6 {[%emt 0:03:17]} Bb6 {[%emt 0:01:17]} 38. Rd7 {[%emt 0:00:55] Never resign too early!  Weighted Error Value: White=0.26 (precise) /Black=0.65} 1-0

[Event "FRA-ch Teams Top 16-B 2022"]
[Site "Chartres"]
[Date "2022.06.11"]
[Round "3.18"]
[White "Amin, Bassem"]
[Black "Nihal Sarin"]
[Result "1/2-1/2"]
[ECO "C42"]
[WhiteElo "2686"]
[BlackElo "2646"]
[Annotator "TA"]
[PlyCount "60"]
[EventDate "2022.06.09"]
[EventType "team-tourn"]
[EventCountry "FRA"]
[SourceTitle "playchess.com"]
[Source "ChessBase"]
[SourceQuality "1"]
[TimeControl "40/5400+30:1800+30"]

{[%evp 13,60,19,27,25,18,6,18,13,19,0,0,-6,-12,-6,-8,0,0,-57,-43,-34,-45,-44,0,-14,-15,-14,0,0,5,6,5,6,6,6,6,6,25,16,25,25,33,11,24,7,5,1,4,4,7]} 1. e4 {[%emt 0:01:02]} e5 {[%emt 0:00:13]} 2. Nf3 {[%emt 0:01:14]} Nf6 {[%emt 0:00:08]} 3. Nxe5 {[%emt 0:04:36]} d6 {[%emt 0:00:55]} 4. Nf3 {[%emt 0:00:34]} Nxe4 {[%emt 0:00:08]} 5. Nc3 {[%emt 0:00:16]} Nxc3 {[%emt 0:00:05]} 6. dxc3 {[%emt 0:00:05][%cal Bd2c3,Bc3c4][%mdl 32]} Be7 {[%emt 0:00:05]} 7. Be3 {[%emt 0:00:37]} O-O {[%emt 0:00:17]} 8. Qd2 {[%emt 0:00:32] C42: Petroff Defence: 3 Nxe5 and unusual White 3rd moves.} Nd7 {[%emt 0:01:54]} 9. O-O-O {[%emt 0:00:21]} c6 {[%emt 0:00:04]} 10. Kb1 {[%emt 0:09:05]} d5 {[%emt 0:00:43]} 11. c4 {[%emt 0:05:53]} Nb6 {[%emt 0:03:03] [#]} 12. Bxb6 $146 {[%emt 0:08:32]} ({Predecessor:} 12. cxd5 Nxd5 13. Bc4 Bf5 14. Bxd5 cxd5 15. Qxd5 Qc8 16. Nd4 Bg6 17. Ka1 Re8 18. Rhe1 {0-1 (39) Robson,R (2660)-Caruana,F (2804) Saint Louis 2018}) 12... Qxb6 {[%emt 0:01:49]} 13. cxd5 {[%emt 0:00:09]} Bf6 {[%emt 0:01:01][%csl Gf6][%cal Rb6b2] [#]} 14. c3 {[%emt 0:08:42]} Rd8 {[%emt 0:20:59]} 15. Qc2 {[%emt 0:16:05]} (15. Qe3 $11) 15... Rxd5 {[%emt 0:00:34]} 16. Rxd5 {[%emt 0:01:24]} cxd5 {[%emt 0:00:07]} 17. Bd3 {[%emt 0:03:43]} h6 {[%emt 0:20:21]} 18. Re1 {[%emt 0:03:38][%cal Re1e8] [#]} Be6 {[%emt 0:09:48]} 19. Qd2 {[%emt 0:01:58]} Rc8 {[%emt 0:11:40] aiming for ...Bxc3.} 20. Nd4 {[%emt 0:01:50]} Bxd4 {[%emt 0:00:05]} 21. cxd4 {[%emt 0:00:08]} Kf8 {[%emt 0:00:01]} 22. Qf4 {[%emt 0:04:36]} Qc7 {[%emt 0:03:18]} 23. Qxc7 {[%emt 0:08:29]} Rxc7 $11 {[%emt 0:00:12][%mdl 4096] Endgame KRB-KRB} 24. f4 {[%emt 0:00:17]} Re7 {[%emt 0:11:07][%cal Oe6f5]} 25. Kc1 {[%emt 0:01:07]} f6 {[%emt 0:07:01]} 26. Kd2 {[%emt 0:00:27]} Ke8 {[%emt 0:00:02]} 27. Bg6+ {[%emt 0:07:05]} Kd8 {[%emt 0:00:20]} 28. Re3 {[%emt 0:00:42]} Bd7 {[%emt 0:00:57] The position is equal.} 29. Bd3 {[%emt 0:10:07]} Rxe3 {[%emt 0:00:37]} 30. Kxe3 {[%emt 0:00:06]} g5 {[%emt 0:01:44] Weighted Error Value: White=0.10 (very precise) /Black=0.06 (flawless)} 1/2-1/2

[Event "FRA-ch Teams Top 16-B 2022"]
[Site "Chartres"]
[Date "2022.06.11"]
[Round "3.19"]
[White "Mendonca, Leon Luke"]
[Black "Gharamian, Tigran"]
[Result "1/2-1/2"]
[ECO "D37"]
[WhiteElo "2551"]
[BlackElo "2602"]
[Annotator "TA"]
[PlyCount "109"]
[EventDate "2022.06.09"]
[EventType "team-tourn"]
[EventCountry "FRA"]
[SourceTitle "playchess.com"]
[Source "ChessBase"]
[SourceQuality "1"]
[TimeControl "40/5400+30:1800+30"]

{[%evp 9,109,21,13,24,36,30,45,38,54,52,48,56,45,73,75,44,41,69,90,71,131,132,139,127,126,137,131,126,139,122,126,115,135,131,114,133,137,123,139,142,195,170,227,180,237,191,185,141,136,141,153,149,155,152,153,143,140,133,137,105,112,8,8,0,0,0,0,0,0,-8,-8,-8,-8,-8,0,-8,-8,-8,-8,-8,-8,-8,-8,-8,-8,-8,0,-8,0,-8,-8,-8,-8,-8,0,0,0,-8,0,0,0,-8]} 1. d4 {[%emt 0:00:03]} d5 {[%emt 0:00:06]} 2. c4 {[%emt 0:00:25]} e6 {[%emt 0:00:08]} 3. Nf3 {[%emt 0:01:00]} Nf6 {[%emt 0:00:11]} 4. Nc3 {[%emt 0:00:14]} Nbd7 {[%emt 0:00:08][%cal Bb8d7,Bd7b6,Bb6c4][%mdl 32]} 5. Bf4 {[%emt 0:05:43]} dxc4 {[%emt 0:00:33]} 6. e3 {[%emt 0:00:29] D37: Queen's Gambit Declined: 5 Bf4.} c5 {[%emt 0:00:28]} 7. Bxc4 {[%emt 0:02:31] And now Nb5 would win.} a6 {[%emt 0:02:28] Against Nb5} 8. O-O {[%emt 0:11:49][%cal Bh1f1,Bf1d1,Bd1d4,Bd4c4][%mdl 32] [#] Hoping for d5. White is slightly better.} Be7 $146 {[%emt 0:32:32]} ({Predecessor:} 8... cxd4 9. exd4 Nb6 10. Bb3 Be7 11. Rc1 O-O 12. Ne5 Bd7 13. Qf3 Bc8 14. Rfd1 Nfd5 {½-½ (40) Tolstikh,N-Obukhov,A Cheliabinsk 1989}) 9. d5 {[%emt 0:10:59]} Nb6 {[%emt 0:02:45][%csl LRc4,LRd5]} 10. d6 {[%emt 0:01:37]} Bxd6 {[%emt 0:03:17]} 11. Bxd6 {[%emt 0:07:02]} Nxc4 {[%emt 0:00:07]} 12. Bxc5 {[%emt 0:00:42] Qxd8+ is the strong threat.} Qxd1 {[%emt 0:04:28]} 13. Rfxd1 {[%emt 0:02:06]} Bd7 {[%emt 0:16:00]} 14. Rd4 {[%emt 0:08:51]} Rc8 {[%emt 0:04:26]} 15. Rxc4 $16 {[%emt 0:03:00]} b6 {[%emt 0:01:53]} 16. Na4 {[%emt 0:08:15]} bxc5 {[%emt 0:07:33]} 17. Nxc5 {[%emt 0:02:06]} Ke7 {[%emt 0:00:04]} 18. Rac1 {[%emt 0:03:21]} Rhd8 {[%emt 0:01:57]} 19. h3 {[%emt 0:13:44] White is more active.} (19. Nxa6 Rxc4 20. Rxc4 Bb5 21. Rc7+ Ke8 $17) 19... Nd5 {[%emt 0:07:54]} 20. a3 {[%emt 0:06:22]} ({And not} 20. Nxa6 Rxc4 21. Rxc4 Bb5 $17) 20... f6 {[%emt 0:02:05]} 21. Nxd7 {[%emt 0:07:46] Pair of Knights!} ({Don't play} 21. Nxa6 $6 Rxc4 22. Rxc4 Bb5 $11) 21... Rxc4 {[%emt 0:00:17]} 22. Rxc4 {[%emt 0:00:03]} Rxd7 {[%emt 0:00:07][%mdl 4096] Endgame KRN-KRN} 23. Rc6 {[%emt 0:01:04]} a5 {[%emt 0:02:29]} 24. Nd4 {[%emt 0:00:41]} e5 {[%emt 0:03:15]} (24... Rd6 $16 25. Rc5 a4) 25. Nf5+ $18 {[%emt 0:00:40]} Kd8 {[%emt 0:00:09]} (25... Kf8 $142 26. Ra6 Nc7 27. Rxa5 Rd1+ 28. Kh2 Rd2) 26. g4 {[%emt 0:01:43]} g6 {[%emt 0:04:55]} (26... Ne7 $142 27. Nxe7 Kxe7) 27. Nd6 {[%emt 0:00:47]} Rc7 {[%emt 0:00:48]} 28. Rxc7 {[%emt 0:00:47]} Kxc7 {[%emt 0:00:04] KN-KN} 29. Nc4 {[%emt 0:00:18]} a4 {[%emt 0:00:05]} 30. Kf1 {[%emt 0:00:33]} Kc6 {[%emt 0:00:06]} 31. Ke2 {[%emt 0:00:31]} Kc5 {[%emt 0:00:06]} 32. Nd2 {[%emt 0:00:35]} f5 {[%emt 0:00:15]} 33. gxf5 {[%emt 0:00:30]} gxf5 {[%emt 0:00:05]} 34. Nf3 {[%emt 0:00:31]} e4 {[%emt 0:01:41]} 35. Nd4 {[%emt 0:00:37]} ({White should play} 35. Nd2 $16) 35... Kc4 $11 {[%emt 0:00:04] The position is equal.} 36. Nxf5 {[%emt 0:00:31] [#] Threatens to win with Kd2.} Kb3 {[%emt 0:00:04]} 37. Nd6 {[%emt 0:00:30]} Kxb2 {[%emt 0:00:14]} 38. Nxe4 {[%emt 0:00:31]} Kxa3 {[%emt 0:00:05] aiming for ...Kb2.} 39. Nc5 {[%emt 0:00:30]} Kb4 {[%emt 0:00:19]} 40. Nxa4 {[%emt 0:00:27]} Kxa4 {[%emt 0:00:03] KN-K3P} 41. Kf3 {[%emt 0:08:18]} Nc3 {[%emt 0:04:20]} 42. e4 {[%emt 0:04:35]} Kb5 {[%emt 0:00:38]} 43. Kf4 {[%emt 0:03:34]} Kc6 {[%emt 0:00:14]} 44. Kf5 {[%emt 0:05:18]} Kd7 {[%emt 0:01:07]} 45. f4 {[%emt 0:01:48]} Ke7 {[%emt 0:00:18]} 46. e5 {[%emt 0:00:37]} Nd5 {[%emt 0:02:59]} 47. Ke4 {[%emt 0:02:05]} Nc3+ {[%emt 0:00:13]} 48. Kf5 $1 {[%emt 0:00:31]} Nd5 {[%emt 0:00:06]} 49. h4 {[%emt 0:01:12]} Kf7 {[%emt 0:08:23]} 50. Ke4 {[%emt 0:02:07]} Ne7 {[%emt 0:00:04] ( -> ...Kg6)} 51. f5 {[%emt 0:00:25]} Nc6 {[%emt 0:00:02]} 52. Kd5 {[%emt 0:01:53]} Ne7+ {[%emt 0:00:06]} 53. Ke4 {[%emt 0:00:03]} Nc6 {[%emt 0:00:04]} 54. Kd5 {[%emt 0:03:29]} Ne7+ {[%emt 0:00:04]} 55. Ke4 {[%emt 0:02:11] Black defended with fortune.  Weighted Error Value: White=0.10 (very precise) /Black=0.07 (flawless)} 1/2-1/2

[Event "FRA-ch Teams Top 16-B 2022"]
[Site "Chartres"]
[Date "2022.06.11"]
[Round "3.20"]
[White "Van Foreest, Jorden"]
[Black "Papadiamandis, Elliot"]
[Result "1-0"]
[ECO "B90"]
[WhiteElo "2715"]
[BlackElo "2373"]
[Annotator "TA"]
[PlyCount "78"]
[EventDate "2022.06.09"]
[EventType "team-tourn"]
[EventCountry "FRA"]
[SourceTitle "playchess.com"]
[Source "ChessBase"]
[SourceQuality "1"]
[TimeControl "40/5400+30:1800+30"]

{[%evp 14,78,0,0,0,5,0,7,0,9,10,0,17,14,48,50,47,45,60,27,59,59,67,56,64,52,52,66,96,100,72,83,87,40,101,105,127,121,141,87,86,83,84,88,87,87,199,198,208,208,201,204,253,251,283,271,427,414,409,379,474,459,480,484,473,454,502]} 1. e4 {[%emt 0:00:04]} c5 {[%emt 0:00:10]} 2. Nf3 {[%emt 0:00:12]} d6 {[%emt 0:00:12]} 3. d4 {[%emt 0:00:13]} cxd4 {[%emt 0:00:22]} 4. Nxd4 {[%emt 0:00:11]} Nf6 {[%emt 0:00:06]} 5. Nc3 {[%emt 0:00:08]} a6 {[%emt 0:00:16]} 6. a4 {[%emt 0:00:42]} e5 {[%emt 0:06:30]} 7. Nf3 {[%emt 0:00:11]} Be7 {[%emt 0:01:07] 7...Be7 scores better than 7...Qc7.} 8. Bg5 {[%emt 0:01:13]} Be6 {[%emt 0:02:32] B90: Sicilian Najdorf: Unusual White 6th moves, 6 Be3 Ng4 and 6 Be3 e5.} 9. Bxf6 {[%emt 0:00:16]} Bxf6 {[%emt 0:00:09]} 10. Nd5 {[%emt 0:00:08] Inhibits Qb6.} Nd7 {[%emt 0:04:00] The position is equal.} 11. Bc4 {[%emt 0:00:13]} Rc8 {[%emt 0:02:42]} 12. b3 {[%emt 0:00:24]} O-O {[%emt 0:07:34]} 13. O-O {[%emt 0:00:18]} Bg5 {[%emt 0:02:54]} 14. Nxg5 {[%emt 0:06:31]} Qxg5 {[%emt 0:00:27]} 15. Ne3 {[%emt 0:00:10]} Qe7 {[%emt 0:09:59]} 16. Re1 {[%emt 0:07:14] [#]} Nb6 $146 {[%emt 0:07:54][%cal Rb6c4]} ({Predecessor:} 16... Nf6 17. Qd3 Rfd8 18. a5 g6 19. Bxe6 Qxe6 20. c4 Kg7 21. Ra4 Rc5 22. h3 Qc8 {½-½ (37) Hou,Y (2589)-Ju,W (2500) Hefei 2010}) 17. Bxe6 {[%emt 0:00:14]} fxe6 {[%emt 0:00:32]} 18. Qd2 {[%emt 0:01:53]} Rfd8 {[%emt 0:06:32]} 19. Rad1 {[%emt 0:00:48]} d5 {[%emt 0:05:29]} 20. Qa5 {[%emt 0:07:03][%csl LRb6,LRd5]} Qc5 {[%emt 0:08:23]} 21. Qxc5 {[%emt 0:01:45]} Rxc5 {[%emt 0:01:49]} 22. exd5 {[%emt 0:00:12]} exd5 {[%emt 0:00:30] [#]} 23. c4 {[%emt 0:06:28]} (23. b4 $1 $16 {[%cal Rb4c5]} Rcc8 24. a5) 23... Rd7 {[%emt 0:06:09] [#]} (23... d4 $14) 24. cxd5 $1 $16 {[%emt 0:00:57]} a5 {[%emt 0:01:43]} 25. d6 $36 {[%emt 0:00:42][%mdl 2048] White is in control.} Kf7 {[%emt 0:05:40]} 26. Rc1 {[%emt 0:02:30]} ({Better is} 26. f4) 26... Rxc1 {[%emt 0:01:39]} 27. Rxc1 {[%emt 0:00:32]} Rxd6 {[%emt 0:01:45][%mdl 4096] Endgame KRN-KRN} 28. Rc7+ {[%emt 0:01:43]} Rd7 {[%emt 0:01:28]} 29. Rc5 {[%emt 0:00:10][%csl LRa5,LRe5]} Rd3 {[%emt 0:06:26]} (29... Rd4 $16) 30. Rb5 $18 {[%emt 0:00:19]} ({Stronger than} 30. Rxa5 Rxb3 31. g3 Ke6 $11) 30... Nd7 {[%emt 0:00:08]} 31. Rxb7 {[%emt 0:00:08]} Ke6 {[%emt 0:00:12]} 32. h4 {[%emt 0:00:48]} Nc5 {[%emt 0:05:29]} 33. Rxg7 {[%emt 0:00:27]} Rxb3 {[%emt 0:00:18]} 34. Rxh7 {[%emt 0:00:15]} Nxa4 {[%emt 0:00:04]} (34... Rb1+ $142 35. Kh2 Rb4 36. Rh6+ Kd7) 35. Rh6+ {[%emt 0:01:04]} Kf7 {[%emt 0:00:14]} 36. Ra6 {[%emt 0:00:38]} Nc5 {[%emt 0:02:57]} 37. Rxa5 {[%emt 0:00:13] White is clearly winning.} Nd3 {[%emt 0:00:05]} 38. Ng4 {[%emt 0:01:18]} Ke6 {[%emt 0:03:45]} 39. Ra6+ {[%emt 0:00:09]} Kd5 {[%emt 0:01:49] Weighted Error Value: White=0.05 (flawless) /Black=0.26 (precise)} 1-0